fUSD/lending_fUSD_20250806
["ID","MTS","AMOUNT","RATE_DAILY","PERIOD"]
[377620740,1754462590146,-151.0,0.00018989,2]
[377620741,1754462590167,-151.0,0.00018989,2]
[377620742,1754462590187,-151.0,0.00018989,2]
[377620743,1754462590208,-151.0,0.00018989,2]
[377620744,1754462590228,-151.0,0.00018989,2]
[377620745,1754462590249,-151.0,0.00018989,2]
[377620746,1754462590271,-151.0,0.00018989,2]
[377620747,1754462590292,-151.0,0.00018989,2]
[377620748,1754462590314,-2180.0,0.00019,2]
[377620750,1754462913576,160.23,0.00013699,2]
[377620755,1754463031447,-159.18250921,0.000189,2]
[377620756,1754463031457,-592.80952321,0.00019,2]
[377620757,1754463031665,-447.12941237,0.00019,2]
[377620758,1754463031707,-11055.82840349,0.00019,2]
[377620759,1754463031742,-3485.49277757,0.00019,2]
[377620775,1754463037347,-486.04,0.00019,2]
[377620783,1754463037474,-82164.41637685,0.00019,2]
[377620784,1754463037483,-1214.0,0.00019,2]
[377620785,1754463037494,-1214.0,0.00019,2]
[377620786,1754463037504,-1214.0,0.00019,2]
[377620787,1754463037514,-1214.0,0.00019,2]
[377620788,1754463037525,-1214.0,0.00019,2]
[377620789,1754463037535,-1214.0,0.00019,2]
[377620790,1754463037545,-1214.0,0.00019,2]
[377620791,1754463037554,-1214.0,0.00019,2]
[377620792,1754463037563,-952.20145746,0.00019,2]
[377620793,1754463037574,-159.08291,0.00019,2]
[377620794,1754463037584,-500.0,0.00019,2]
[377620795,1754463037594,-1214.0,0.00019,2]
[377620796,1754463037603,-1214.0,0.00019,2]
[377620797,1754463037612,-155.97795091,0.00019,2]
[377620798,1754463037622,-500.0,0.00019548,2]
[377620799,1754463037633,-250.0,0.00020691,2]
[377620800,1754463037643,-159.08292,0.00021,2]
[377620801,1754463037652,-159.08292,0.00023,2]
[377620802,1754463037662,-160.23,0.00023973,2]
[377620803,1754463037672,-152.0,0.00024658,2]
[377620804,1754463037681,-256.17247093,0.00024658,2]
[377620805,1754463037691,-242.43,0.00026362,2]
[377620806,1754463037703,-512.0,0.00026879,2]
[377620807,1754463037715,-201.0,0.0002748,2]
[377620808,1754463037726,-409.76,0.00027673,2]
[377620809,1754463037736,-201.0,0.0002845,2]
[377620810,1754463037747,-409.76,0.00029403,2]
[377620811,1754463037757,-201.0,0.0002942,2]
[377620812,1754463037770,-512.0,0.00029427,6]
[377620813,1754463037779,-201.0,0.0003039,2]
[377620814,1754463037790,-500.0,0.00030593,2]
[377620815,1754463037801,-409.76,0.00031133,2]
[377620816,1754463037813,-175.0,0.00031323,7]
[377620817,1754463037822,-495.89,0.00031329,2]
[377620818,1754463037832,-304.26,0.00031335,2]
[377620819,1754463037845,-201.0,0.0003135,2]
[377620820,1754463037856,-10255.31,0.00031412,2]
[377620821,1754463037865,-2524.83,0.00031497,2]
[377620822,1754463037875,-173.15,0.00031553,2]
[377620823,1754463037884,-1596.15,0.00031673,2]
[377620824,1754463037894,-438.47,0.00031695,2]
[377620825,1754463037903,-233.88,0.00031709,120]
[377620826,1754463037913,-1000.0,0.00031751,2]
[377620827,1754463037922,-850.52,0.00031917,2]
[377620828,1754463037931,-850.52,0.00031934,2]
[377620829,1754463037941,-850.52,0.0003195,2]
[377620830,1754463037951,-850.52,0.00031967,2]
[377620831,1754463037962,-512.0,0.00031974,10]
[377620832,1754463037971,-850.52,0.00031984,2]
[377620833,1754463037981,-226.61588676,0.00032,3]
[377620834,1754463037990,-850.52,0.00032001,2]
[377620835,1754463038000,-850.52,0.00032018,2]
[377620836,1754463038009,-850.52,0.00032034,2]
[377620837,1754463038019,-850.52,0.00032051,2]
[377620838,1754463038028,-850.52,0.00032068,2]
[377620839,1754463038037,-850.52,0.00032085,2]
[377620840,1754463038046,-381.0,0.000321,2]
[377620841,1754463038055,-850.52,0.00032102,2]
[377620842,1754463038065,-850.52,0.00032118,2]
[377620843,1754463038074,-850.52,0.00032135,2]
[377620844,1754463038084,-850.52,0.00032152,2]
[377620845,1754463038093,-850.52,0.00032169,2]
[377620846,1754463038102,-850.52,0.00032186,2]
[377620847,1754463038112,-790.832,0.00032193,31]
[377620848,1754463038121,-850.52,0.00032202,2]
[377620849,1754463038130,-850.52,0.00032219,2]
[377620850,1754463038140,-850.52,0.00032236,2]
[377620851,1754463038149,-150.0,0.00032277,4]
[377620852,1754463038159,-150.0,0.00032277,4]
[377620853,1754463038170,-150.0,0.00032277,4]
[377620854,1754463038181,-198.99,0.0003229,2]
[377620855,1754463038191,-201.0,0.0003232,2]
[377620856,1754463038200,-151.0,0.00032505,4]
[377620857,1754463038209,-200.0,0.00032636,2]
[377620858,1754463038221,-250.0,0.00032655,2]
[377620859,1754463038230,-1252.0,0.00032796,2]
[377620860,1754463038239,-812.0,0.00032796,2]
[377620861,1754463038248,-961.618,0.00032796,2]
[377620862,1754463038257,-958.0,0.00032796,2]
[377620863,1754463038266,-597.0,0.00032796,2]
[377620864,1754463038276,-3659.216,0.00032796,2]
[377620865,1754463038285,-278.842,0.00032796,2]
[377620866,1754463038294,-865.0,0.00032796,2]
[377620867,1754463038304,-457.43778519,0.00032852,2]
[377620868,1754463038313,-409.76,0.00032864,2]
[377620869,1754463038322,-349.66,0.00032904,30]
[377620870,1754463038331,-5000.0,0.00032933,2]
[377620871,1754463038341,-8475.53,0.00032937,2]
[377620872,1754463038350,-479.21,0.0003295,2]
[377620873,1754463038359,-200.0,0.00032966,2]
[377620874,1754463038368,-23900.0,0.00032966,2]
[377620875,1754463038378,-238.13765565,0.00033,2]
[377620876,1754463038386,-173.15,0.0003313,2]
[377620877,1754463038397,-152.0,0.00033213,3]
[377620878,1754463038406,-374.0,0.0003328,2]
[377620879,1754463038416,-269.84397863,0.00033286,30]
[377620880,1754463038427,-201.0,0.0003329,2]
[377620881,1754463038436,-238.13765562,0.0003334,2]
[377620882,1754463038447,-287.11554963,0.00033399,7]
[377620883,1754463038457,-67780.95769571,0.000334,3]
[377620884,1754463038467,-386.12849177,0.000334,3]
[377620885,1754463038477,-500.0,0.00033401,2]
[377620886,1754463038487,-284.72,0.00033518,2]
[377620887,1754463038496,-467.24,0.00033562,2]
[377620888,1754463038506,-796.2,0.00033562,2]
[377620889,1754463038516,-467.24,0.00033562,2]
[377620890,1754463038527,-467.24,0.00033562,2]
[377620891,1754463038537,-796.2,0.00033562,2]
[377620892,1754463038548,-796.2,0.00033562,2]
[377620893,1754463038561,-778.38,0.00033562,2]
[377620894,1754463038571,-796.2,0.00033562,2]
[377620895,1754463038584,-394.75,0.00033562,2]
[377620896,1754463038602,-238.13765562,0.00033681,2]
[377620897,1754463038612,-167.66,0.00033824,2]
[377620898,1754463038622,-152.15,0.00033973,2]
[377620899,1754463038630,-537.43,0.00033973,2]
[377620900,1754463038640,-172.84,0.00033973,2]
[377620901,1754463038650,-317.19,0.00033973,2]
[377620902,1754463038659,-358.58,0.00033973,2]
[377620903,1754463038668,-150.0,0.00033973,2]
[377620904,1754463038678,-300.0,0.00033973,2]
[377620905,1754463038687,-319.53,0.00033973,2]
[377620906,1754463038696,-537.43,0.00033973,2]
[377620907,1754463038706,-150.0,0.00033973,2]
[377620908,1754463038715,-467.7,0.00033973,2]
[377620909,1754463038724,-150.0,0.00033973,2]
[377620910,1754463038734,-150.0,0.00033973,2]
[377620911,1754463038743,-150.0,0.00033973,2]
[377620912,1754463038752,-150.0,0.00033973,2]
[377620913,1754463038762,-238.13765562,0.00034021,2]
[377620914,1754463038774,-167.1,0.00034065,2]
[377620915,1754463038783,-1000.0,0.000341,120]
[377620916,1754463038792,-151.0,0.00034175,5]
[377620917,1754463038802,-781.42284872,0.000342,120]
[377620918,1754463038811,-160.23,0.00034247,2]
[377620919,1754463038821,-201.0,0.0003426,2]
[377620920,1754463038831,-238.13765562,0.00034362,2]
[377620921,1754463038840,-392.90000327,0.00034448,120]
[377620922,1754463038849,-366.0,0.0003447,2]
[377620923,1754463038859,-242.43,0.00034495,2]
[377620924,1754463038868,-512.0,0.00034522,15]
[377620925,1754463038878,-409.76,0.00034594,2]
[377620926,1754463038887,-479.21,0.00034598,2]
[377620927,1754463038898,-500.0,0.00034649,15]
[377620928,1754463038908,-500.0,0.00034649,15]
[377620929,1754463038921,-238.13765562,0.00034702,2]
[377620930,1754463038931,-173.15,0.00034708,2]
[377620931,1754463038940,-2000.0,0.000348,2]
[377620932,1754463038950,-309.3,0.00034907,2]
[377620933,1754463038959,-1000.0,0.00034984,2]
[377620934,1754463038968,-2828.98107908,0.0003499,2]
[377620935,1754463038978,-1632.35,0.0003499,2]
[377620936,1754463038987,-4099.95609385,0.00035,7]
[377620937,1754463038997,-150.0,0.00035013,2]
[377620938,1754463039006,-238.13765562,0.00035043,2]
[377620939,1754463039016,-150.0,0.00035065,2]
[377620940,1754463039028,-359.18,0.00035068,2]
[377620941,1754463039037,-242.43,0.00035166,2]
[377620942,1754463039047,-300.0,0.00035227,2]
[377620943,1754463039056,-201.0,0.0003523,2]
[377620944,1754463039066,-294.61905886,0.00035235,2]
[377620945,1754463039076,-2828.98107908,0.00035285,2]
[377620946,1754463039087,-439.43,0.00035295,2]
[377620947,1754463039097,-165.43,0.00035295,2]
[377620948,1754463039107,-717.97,0.00035295,2]
[377620949,1754463039116,-172.99,0.00035295,2]
[377620950,1754463039125,-345.51,0.00035295,2]
[377620951,1754463039135,-929.83151666,0.00035296,2]
[377620952,1754463039146,-155.06387445,0.00035296,15]
[377620953,1754463039155,-929.83151658,0.00035381,2]
[377620954,1754463039165,-238.13765562,0.00035383,2]
[377620955,1754463039175,-110330.262084,0.00035386,2]
[377620956,1754463039186,-144989.743,0.00035396,2]
[377620957,1754463039195,-1000.0,0.00035396,2]
[377620958,1754463039206,-34474.8207,0.00035396,2]
[377620960,1754463039216,-240.0,0.000354,2]
[377620961,1754463039226,-300.0,0.000354,12]
[377620962,1754463039236,-379.0,0.000354,2]
[377620970,1754463039535,-929.83151658,0.00035467,2]
[377620971,1754463039545,-700.0,0.000355,12]
[377620972,1754463039554,-5000.0,0.00035506,2]
[377620973,1754463039563,-929.83151658,0.00035552,2]
[377620974,1754463039572,-87990.7954276,0.00035596,2]
[377620975,1754463039582,-1100.0,0.000356,12]
[377620976,1754463039592,-1243.83630625,0.000356,9]
[377620977,1754463039601,-200.0,0.00035602,10]
[377620978,1754463039611,-200.0,0.00035603,10]
[377620979,1754463039620,-20305.5681756,0.00035605,2]
[377620980,1754463039630,-142138.977229,0.00035606,2]
[377620981,1754463039639,-150.0,0.00035613,2]
[377620982,1754463039654,-345.41,0.00035615,2]
[377620983,1754463039664,-1761.63,0.00035615,14]
[377620984,1754463039674,-1761.63,0.00035615,14]
[377620985,1754463039684,-1761.63,0.00035615,14]
[377620986,1754463039693,-1761.63,0.00035615,14]
[377620987,1754463039703,-1761.63,0.00035615,14]
[377620988,1754463039714,-1761.63,0.00035615,14]
[377620989,1754463039723,-1761.63,0.00035615,14]
[377620990,1754463039733,-1761.63,0.00035615,14]
[377620991,1754463039742,-1761.63,0.00035615,14]
[377620992,1754463039751,-1761.63,0.00035615,14]
[377620993,1754463039761,-1761.63,0.00035615,14]
[377620994,1754463039774,-1761.63,0.00035615,14]
[377620995,1754463039784,-1761.63,0.00035615,14]
[377620996,1754463039793,-1761.63,0.00035615,14]
[377620997,1754463039803,-1761.63,0.00035615,14]
[377620998,1754463039813,-1761.63,0.00035615,14]
[377620999,1754463039823,-1761.63,0.00035615,14]
[377621000,1754463039832,-1761.63,0.00035615,14]
[377621001,1754463039842,-1761.63,0.00035615,14]
[377621002,1754463039852,-1761.63,0.00035615,14]
[377621003,1754463039862,-1761.63,0.00035615,14]
[377621004,1754463039872,-1761.63,0.00035615,14]
[377621005,1754463039881,-1761.63,0.00035615,14]
[377621006,1754463039892,-1761.85018758,0.00035615,14]
[377621007,1754463039904,-255.0,0.00035616,5]
[377621008,1754463039914,-151.0,0.00035616,7]
[377621009,1754463039923,-151.0,0.00035616,7]
[377621010,1754463039933,-400.0,0.00035616,14]
[377621011,1754463039943,-400.0,0.00035616,14]
[377621012,1754463039953,-400.0,0.00035616,14]
[377621013,1754463039963,-400.0,0.00035616,14]
[377621014,1754463039972,-400.0,0.00035616,14]
[377621015,1754463039982,-1090.61,0.00035616,14]
[377621016,1754463039991,-400.0,0.00035616,14]
[377621017,1754463040001,-400.0,0.00035616,14]
[377621019,1754463040010,-400.0,0.00035616,14]
[377621020,1754463040020,-1004.44,0.00035616,14]
[377621021,1754463040029,-400.0,0.00035616,14]
[377621022,1754463040039,-400.0,0.00035616,14]
[377621023,1754463040049,-500.0,0.00035616,14]
[377621024,1754463040058,-400.0,0.00035616,14]
[377621025,1754463040068,-151.0,0.00035616,7]
[377621026,1754463040078,-400.0,0.00035616,14]
[377621027,1754463040087,-400.0,0.00035616,14]
[377621028,1754463040096,-400.0,0.00035616,14]
[377621029,1754463040105,-400.0,0.00035616,14]
[377621030,1754463040114,-151.0,0.00035616,7]
[377621031,1754463040123,-208.439338,0.00035616,7]
[377621032,1754463040133,-1282.218882,0.00035616,14]
[377621033,1754463040144,-1610.33,0.00035616,14]
[377621034,1754463040153,-1006.265559,0.00035616,14]
[377621035,1754463040163,-400.0,0.00035616,14]
[377621036,1754463040172,-2500.0,0.00035616,14]
[377621037,1754463040182,-1358.546417,0.00035616,14]
[377621038,1754463040191,-400.0,0.00035616,14]
[377621039,1754463040200,-400.0,0.00035616,14]
[377621040,1754463040209,-400.0,0.00035616,14]
[377621041,1754463040218,-167.682794,0.00035616,14]
[377621042,1754463040228,-400.0,0.00035616,14]
[377621043,1754463040237,-156.807078,0.00035616,14]
[377621044,1754463040247,-400.0,0.00035616,14]
[377621045,1754463040256,-400.0,0.00035616,14]
[377621046,1754463040265,-400.0,0.00035616,14]
[377621047,1754463040274,-400.0,0.00035616,14]
[377621048,1754463040284,-519.33,0.00035616,14]
[377621049,1754463040293,-206.41133938,0.00035616,15]
[377621050,1754463040302,-400.0,0.00035616,14]
[377621051,1754463040311,-603.44,0.00035616,14]
[377621052,1754463040320,-400.0,0.00035616,14]
[377621053,1754463040330,-400.0,0.00035616,14]
[377621054,1754463040339,-465.63,0.00035616,14]
[377621055,1754463040348,-400.0,0.00035616,14]
[377621056,1754463040358,-400.0,0.00035616,14]
[377621057,1754463040367,-400.0,0.00035616,14]
[377621058,1754463040376,-920.48,0.00035616,14]
[377621059,1754463040387,-400.0,0.00035616,14]
[377621060,1754463040397,-400.0,0.00035616,14]
[377621061,1754463040407,-400.0,0.00035616,14]
[377621062,1754463040416,-442.07,0.00035616,14]
[377621063,1754463040426,-503.89,0.00035616,14]
[377621064,1754463040435,-160.666147,0.00035616,14]
[377621065,1754463040445,-400.0,0.00035616,14]
[377621066,1754463040454,-151.0,0.00035616,7]
[377621067,1754463040463,-151.0,0.00035616,7]
[377621068,1754463040474,-400.0,0.00035616,14]
[377621069,1754463040483,-400.0,0.00035616,14]
[377621070,1754463040493,-400.0,0.00035616,2]
[377621071,1754463040502,-1061.26,0.00035616,14]
[377621072,1754463040511,-2364.22,0.00035616,14]
[377621073,1754463040521,-444.8,0.00035616,14]
[377621074,1754463040530,-849.55,0.00035616,14]
[377621075,1754463040540,-1156.94,0.00035616,14]
[377621076,1754463040549,-400.0,0.00035616,14]
[377621077,1754463040559,-1599.61,0.00035616,14]
[377621078,1754463040568,-535.89,0.00035616,14]
[377621079,1754463040578,-400.0,0.00035616,14]
[377621080,1754463040587,-1425.17,0.00035616,14]
[377621081,1754463040596,-400.0,0.00035616,14]
[377621082,1754463040606,-400.0,0.00035616,14]
[377621083,1754463040616,-400.0,0.00035616,14]
[377621084,1754463040627,-151.0,0.00035616,7]
[377621085,1754463040638,-151.0,0.00035616,7]
[377621086,1754463040649,-1869.85,0.00035616,14]
[377621087,1754463040660,-400.0,0.00035616,14]
[377621088,1754463040671,-151.0,0.00035616,7]
[377621089,1754463040681,-272.260884,0.00035616,7]
[377621090,1754463040692,-400.0,0.00035616,14]
[377621091,1754463040703,-400.0,0.00035616,14]
[377621092,1754463040716,-400.0,0.00035616,14]
[377621093,1754463040726,-467.460001,0.00035616,14]
[377621094,1754463040736,-400.0,0.00035616,14]
[377621095,1754463040747,-151.0,0.00035616,7]
[377621096,1754463040758,-1267.89,0.00035616,14]
[377621097,1754463040774,-151.0,0.00035616,7]
[377621098,1754463040784,-400.0,0.00035616,14]
[377621099,1754463040794,-400.0,0.00035616,14]
[377621100,1754463040804,-151.0,0.00035616,7]
[377621101,1754463040813,-151.0,0.00035616,7]
[377621102,1754463040823,-791.67,0.00035616,14]
[377621103,1754463040834,-400.0,0.00035616,14]
[377621104,1754463040844,-400.0,0.00035616,14]
[377621105,1754463040855,-680.74,0.00035616,14]
[377621106,1754463040865,-400.0,0.00035616,14]
[377621107,1754463040876,-400.0,0.00035616,14]
[377621108,1754463040887,-151.0,0.00035616,7]
[377621109,1754463040899,-151.0,0.00035616,7]
[377621110,1754463040908,-543.01,0.00035616,14]
[377621111,1754463040918,-374.42015644,0.00035616,14]
[377621112,1754463040929,-400.0,0.00035616,14]
[377621113,1754463040938,-400.0,0.00035616,14]
[377621114,1754463040947,-844.74,0.00035616,14]
[377621115,1754463040957,-400.0,0.00035616,14]
[377621116,1754463040966,-400.0,0.00035616,14]
[377621117,1754463040975,-994.73,0.00035616,14]
[377621118,1754463040985,-400.0,0.00035616,14]
[377621119,1754463040995,-400.0,0.00035616,14]
[377621120,1754463041005,-400.0,0.00035616,14]
[377621121,1754463041015,-400.0,0.00035616,14]
[377621122,1754463041024,-669.16,0.00035616,14]
[377621123,1754463041034,-400.0,0.00035616,14]
[377621124,1754463041044,-400.0,0.00035616,14]
[377621125,1754463041053,-151.0,0.00035616,7]
[377621126,1754463041063,-400.0,0.00035616,14]
[377621127,1754463041072,-151.0,0.00035616,7]
[377621128,1754463041082,-400.0,0.00035616,14]
[377621129,1754463041091,-400.0,0.00035616,14]
[377621130,1754463041101,-400.0,0.00035616,14]
[377621131,1754463041110,-1919.93,0.00035616,14]
[377621132,1754463041119,-400.0,0.00035616,14]
[377621133,1754463041129,-758.81,0.00035616,14]
[377621134,1754463041138,-400.0,0.00035616,14]
[377621135,1754463041149,-1174.96,0.00035616,14]
[377621136,1754463041159,-400.0,0.00035616,14]
[377621137,1754463041168,-400.0,0.00035616,14]
[377621138,1754463041178,-459.9,0.00035616,14]
[377621139,1754463041187,-400.0,0.00035616,14]
[377621140,1754463041196,-151.0,0.00035616,7]
[377621141,1754463041206,-400.0,0.00035616,14]
[377621142,1754463041215,-151.0,0.00035616,7]
[377621143,1754463041226,-151.0,0.00035616,7]
[377621144,1754463041236,-400.0,0.00035616,14]
[377621145,1754463041246,-151.0,0.00035616,7]
[377621146,1754463041256,-284.268163,0.00035616,7]
[377621147,1754463041267,-400.0,0.00035616,14]
[377621148,1754463041276,-151.0,0.00035616,7]
[377621149,1754463041286,-151.0,0.00035616,7]
[377621150,1754463041296,-400.0,0.00035616,14]
[377621151,1754463041307,-400.0,0.00035616,14]
[377621152,1754463041318,-1619.24,0.00035616,14]
[377621153,1754463041328,-509.16,0.00035616,14]
[377621154,1754463041338,-400.0,0.00035616,14]
[377621155,1754463041347,-400.0,0.00035616,14]
[377621156,1754463041357,-742.95,0.00035616,14]
[377621157,1754463041366,-400.0,0.00035616,5]
[377621158,1754463041375,-400.0,0.00035616,14]
[377621159,1754463041385,-400.0,0.00035616,14]
[377621160,1754463041396,-558.23,0.00035616,14]
[377621161,1754463041406,-400.0,0.00035616,14]
[377621162,1754463041416,-400.0,0.00035616,14]
[377621163,1754463041425,-400.0,0.00035616,14]
[377621164,1754463041435,-1419.39,0.00035616,14]
[377621165,1754463041444,-739.69,0.00035616,14]
[377621166,1754463041453,-400.0,0.00035616,14]
[377621167,1754463041463,-1089.64,0.00035616,14]
[377621168,1754463041472,-400.0,0.00035616,14]
[377621169,1754463041481,-642.3,0.00035616,14]
[377621170,1754463041491,-400.0,0.00035616,14]
[377621171,1754463041500,-930.59,0.00035616,14]
[377621172,1754463041509,-1496.69,0.00035616,14]
[377621173,1754463041518,-400.0,0.00035616,14]
[377621174,1754463041527,-942.1,0.00035616,14]
[377621175,1754463041537,-801.09,0.00035616,14]
[377621176,1754463041547,-400.0,0.00035616,14]
[377621177,1754463041556,-400.0,0.00035616,14]
[377621178,1754463041566,-492.54,0.00035616,14]
[377621179,1754463041575,-1121.7,0.00035616,14]
[377621180,1754463041584,-461.32394826,0.00035616,14]
[377621181,1754463041593,-1416.43,0.00035616,14]
[377621182,1754463041603,-400.0,0.00035616,14]
[377621183,1754463041612,-335.34429961,0.00035616,14]
[377621184,1754463041621,-477.6,0.00035616,14]
[377621185,1754463041631,-400.0,0.00035616,14]
[377621186,1754463041640,-400.0,0.00035616,14]
[377621187,1754463041651,-400.0,0.00035616,14]
[377621188,1754463041660,-400.0,0.00035616,14]
[377621189,1754463041670,-1200.5,0.00035616,14]
[377621190,1754463041681,-400.0,0.00035616,14]
[377621191,1754463041690,-375.56005845,0.00035616,14]
[377621192,1754463041701,-400.0,0.00035616,14]
[377621193,1754463041711,-1837.58,0.00035616,14]
[377621194,1754463041722,-151.0,0.00035616,7]
[377621195,1754463041731,-400.0,0.00035616,14]
[377621196,1754463041742,-276.557644,0.00035616,7]
[377621197,1754463041753,-400.0,0.00035616,14]
[377621198,1754463041763,-400.0,0.00035616,14]
[377621199,1754463041778,-400.0,0.00035616,14]
[377621200,1754463041788,-790.58,0.00035616,14]
[377621201,1754463041798,-400.0,0.00035616,14]
[377621202,1754463041807,-1483.63,0.00035616,14]
[377621203,1754463041819,-1147.4,0.00035616,14]
[377621204,1754463041829,-1315.33,0.00035616,14]
[377621205,1754463041838,-484.52472931,0.00035616,14]
[377621206,1754463041850,-1016.37,0.00035616,14]
[377621207,1754463041860,-972.91,0.00035616,14]
[377621208,1754463041871,-476.85,0.00035616,14]
[377621209,1754463041881,-603.46,0.00035616,14]
[377621210,1754463041892,-787.52,0.00035616,14]
[377621211,1754463041901,-400.0,0.00035616,14]
[377621212,1754463041910,-400.0,0.00035616,14]
[377621213,1754463041920,-1951.08,0.00035616,14]
[377621214,1754463041930,-400.0,0.00035616,14]
[377621215,1754463041941,-724.38,0.00035616,14]
[377621216,1754463041951,-400.0,0.00035616,14]
[377621217,1754463041960,-400.0,0.00035616,14]
[377621218,1754463041969,-400.0,0.00035616,14]
[377621219,1754463041978,-400.0,0.00035616,14]
[377621220,1754463041988,-479.39,0.00035616,14]
[377621221,1754463041998,-1636.29,0.00035616,14]
[377621222,1754463042008,-517.37,0.00035616,14]
[377621223,1754463042017,-400.0,0.00035616,14]
[377621224,1754463042026,-400.0,0.00035616,14]
[377621225,1754463042036,-400.0,0.00035616,14]
[377621226,1754463042045,-400.0,0.00035616,14]
[377621227,1754463042054,-400.0,0.00035616,7]
[377621228,1754463042063,-762.2,0.00035616,14]
[377621229,1754463042073,-648.73,0.00035616,14]
[377621230,1754463042082,-400.0,0.00035616,14]
[377621231,1754463042092,-800.17,0.00035616,14]
[377621232,1754463042102,-462.55,0.00035616,14]
[377621233,1754463042114,-400.0,0.00035616,14]
[377621234,1754463042123,-1093.47,0.00035616,14]
[377621235,1754463042133,-746.52,0.00035616,14]
[377621236,1754463042144,-400.000001,0.00035616,14]
[377621237,1754463042153,-400.0,0.00035616,2]
[377621239,1754463042163,-1365.08,0.00035616,14]
[377621240,1754463042172,-736.03,0.00035616,14]
[377621241,1754463042181,-400.0,0.00035616,14]
[377621242,1754463042190,-400.0,0.00035616,14]
[377621244,1754463042199,-400.0,0.00035616,14]
[377621246,1754463042208,-573.68,0.00035616,14]
[377621248,1754463042218,-400.0,0.00035616,14]
[377621249,1754463042228,-400.0,0.00035616,14]
[377621251,1754463042239,-400.0,0.00035616,14]
[377621253,1754463042248,-400.0,0.00035616,14]
[377621254,1754463042258,-400.0,0.00035616,14]
[377621255,1754463042267,-400.0,0.00035616,14]
[377621256,1754463042277,-400.0,0.00035616,14]
[377621257,1754463042288,-317.13121318,0.00035616,14]
[377621258,1754463042297,-1581.76,0.00035616,14]
[377621259,1754463042307,-555.73,0.00035616,14]
[377621261,1754463042317,-400.0,0.00035616,14]
[377621264,1754463042328,-1224.74,0.00035616,14]
[377621265,1754463042338,-400.0,0.00035616,14]
[377621267,1754463042349,-430.64,0.00035616,14]
[377621268,1754463042359,-484.77,0.00035616,14]
[377621269,1754463042369,-400.0,0.00035616,14]
[377621270,1754463042379,-151.0,0.00035616,7]
[377621272,1754463042388,-401.74923344,0.00035616,14]
[377621273,1754463042398,-151.0,0.00035616,7]
[377621274,1754463042408,-400.0,0.00035616,14]
[377621275,1754463042419,-1124.6,0.00035616,14]
[377621276,1754463042428,-151.0,0.00035616,7]
[377621277,1754463042438,-400.0,0.00035616,14]
[377621278,1754463042447,-400.0,0.00035616,14]
[377621279,1754463042456,-400.0,0.00035616,14]
[377621280,1754463042466,-400.0,0.00035616,14]
[377621281,1754463042475,-1184.25,0.00035616,14]
[377621282,1754463042484,-784.6,0.00035616,14]
[377621283,1754463042494,-1197.26,0.00035616,14]
[377621284,1754463042503,-407.41982844,0.00035616,14]
[377621285,1754463042513,-760.0,0.00035616,14]
[377621286,1754463042522,-400.0,0.00035616,14]